fUST/lending_fUST_20240907
["ID","MTS","AMOUNT","RATE_DAILY","PERIOD"]
[337403956,1725640304731,-589.16,0.00022465,2]
[337403957,1725640304740,-500.0,0.00022465,2]
[337403958,1725640304749,-500.0,0.00022465,2]
[337403959,1725640304759,-157.190556,0.00022465,7]
[337403960,1725640304769,-157.190556,0.00022465,7]
[337403961,1725640304779,-987.27,0.00022465,2]
[337403962,1725640304789,-500.0,0.00022465,2]
[337403963,1725640304799,-795.13,0.00022465,2]
[337403964,1725640304809,-618.42,0.00022465,2]
[337403965,1725640304820,-500.0,0.00022465,2]
[337403966,1725640304831,-651.04,0.00022465,2]
[337403967,1725640304842,-151.0,0.00022465,7]
[337403968,1725640304997,-821.38,0.00022465,2]
[337403969,1725640305008,-592.44,0.00022465,2]
[337403970,1725640305019,-1272.15,0.00022465,2]
[337403971,1725640305028,-1117.88,0.00022465,2]
[337403972,1725640305040,-151.0,0.00022465,7]
[337403973,1725640305049,-151.0,0.00022465,7]
[337403974,1725640305058,-1080.6,0.00022465,2]
[337403975,1725640305069,-151.0,0.00022465,7]
[337403976,1725640305078,-1014.72,0.00022465,2]
[337403977,1725640305089,-151.0,0.00022465,7]
[337403978,1725640305101,-500.0,0.00022465,2]
[337403979,1725640305110,-562.41535323,0.00022465,2]
[337403980,1725640305120,-500.0,0.00022465,2]
[337403981,1725640305131,-286.19316336,0.00022465,2]
[337403982,1725640305141,-151.0,0.00022465,7]
[337403983,1725640305150,-500.0,0.00022465,2]
[337403984,1725640305163,-500.0,0.00022465,2]
[337403985,1725640305175,-500.0,0.00022465,2]
[337403986,1725640305185,-772.11,0.00022465,2]
[337403987,1725640305195,-511.8044449,0.00022465,2]
[337403988,1725640305204,-814.17,0.00022465,2]
[337403989,1725640305214,-500.0,0.00022465,2]
[337403990,1725640305224,-500.0,0.00022465,2]
[337403991,1725640305234,-500.0,0.00022465,2]
[337403992,1725640305244,-510.55546569,0.00022465,2]
[337403993,1725640305254,-500.0,0.00022465,2]
[337403994,1725640305264,-500.0,0.00022465,2]
[337403995,1725640305274,-500.0,0.00022465,2]
[337403996,1725640305283,-279.00730067,0.00022465,2]
[337403997,1725640305293,-500.0,0.00022465,2]
[337403998,1725640305303,-500.59,0.00022465,2]
[337403999,1725640305313,-500.0,0.00022465,2]
[337404000,1725640305323,-500.0,0.00022465,2]
[337404001,1725640305333,-500.0,0.00022465,2]
[337404002,1725640305343,-1567.65,0.00022465,2]
[337404003,1725640305353,-500.0,0.00022465,2]
[337404004,1725640305362,-939.4,0.00022465,2]
[337404005,1725640305372,-500.0,0.00022465,2]
[337404006,1725640305382,-567.34,0.00022465,2]
[337404007,1725640305392,-500.0,0.00022465,2]
[337404008,1725640305402,-639.12,0.00022465,2]
[337404009,1725640305414,-500.0,0.00022465,2]
[337404010,1725640305424,-1180.54,0.00022465,2]
[337404011,1725640305433,-726.62,0.00022465,2]
[337404012,1725640305444,-680.99,0.00022465,2]
[337404013,1725640305453,-968.59,0.00022465,2]
[337404014,1725640305463,-231.165605,0.00022465,7]
[337404015,1725640305472,-500.0,0.00022465,2]
[337404016,1725640305482,-231.165605,0.00022465,7]
[337404017,1725640305492,-164.324719,0.00022465,7]
[337404018,1725640305502,-164.324719,0.00022465,7]
[337404019,1725640305512,-651.15,0.00022465,2]
[337404020,1725640305522,-521.44,0.00022465,2]
[337404021,1725640305532,-500.0,0.00022465,2]
[337404022,1725640305543,-599.48,0.00022465,2]
[337404023,1725640305554,-500.0,0.00022465,2]
[337404024,1725640305565,-500.0,0.00022465,2]
[337404025,1725640305575,-500.0,0.00022465,2]
[337404026,1725640305585,-1405.05,0.00022465,2]
[337404027,1725640305595,-500.0,0.00022465,2]
[337404028,1725640305604,-615.35,0.00022465,2]
[337404029,1725640305614,-500.0,0.00022465,2]
[337404030,1725640305624,-500.0,0.00022465,2]
[337404031,1725640305633,-500.0,0.00022465,2]
[337404032,1725640305642,-500.0,0.00022465,2]
[337404033,1725640305652,-606.55,0.00022465,2]
[337404034,1725640305665,-500.0,0.00022465,2]
[337404035,1725640305675,-698.82,0.00022465,2]
[337404036,1725640305685,-500.0,0.00022465,2]
[337404037,1725640305695,-952.82,0.00022465,2]
[337404038,1725640305704,-622.55,0.00022465,2]
[337404039,1725640305715,-500.0,0.00022465,2]
[337404040,1725640305725,-500.0,0.00022465,2]
[337404041,1725640305734,-979.78,0.00022465,2]
[337404042,1725640305744,-158.49291514,0.00022465,2]
[337404043,1725640305753,-500.0,0.00022465,2]
[337404044,1725640305763,-560.92191,0.00022465,7]
[337404045,1725640305773,-1036.391867,0.00022465,7]
[337404046,1725640305783,-500.0,0.00022465,2]
[337404047,1725640305793,-560.92191,0.00022465,7]
[337404048,1725640305802,-500.0,0.00022465,2]
[337404049,1725640305812,-500.0,0.00022465,2]
[337404050,1725640305822,-500.0,0.00022465,2]
[337404051,1725640305832,-418.963009,0.00022465,7]
[337404052,1725640305842,-819.45,0.00022465,2]
[337404053,1725640305852,-620.98797445,0.00022465,2]
[337404054,1725640305861,-418.963009,0.00022465,7]
[337404055,1725640305871,-645.35,0.00022465,2]
[337404056,1725640305881,-500.0,0.00022465,2]
[337404057,1725640305890,-500.0,0.00022465,2]
[337404058,1725640305900,-733.98,0.00022465,2]
[337404059,1725640305923,-175.642776,0.00022465,7]
[337404060,1725640305933,-537.89,0.00022465,2]
[337404061,1725640305943,-500.0,0.00022465,2]
[337404062,1725640305953,-612.76,0.00022465,2]
[337404063,1725640305964,-175.642776,0.00022465,7]
[337404064,1725640305973,-851.49,0.00022465,2]
[337404065,1725640305983,-572.1840676,0.00022465,2]
[337404066,1725640305993,-894.83,0.00022465,2]
[337404067,1725640306003,-583.43,0.00022465,2]
[337404068,1725640306013,-1053.94,0.00022465,2]
[337404069,1725640306022,-500.0,0.00022465,2]
[337404070,1725640306032,-1098.68,0.00022465,2]
[337404071,1725640306042,-500.0,0.00022465,2]
[337404072,1725640306053,-1626.43,0.00022465,2]
[337404073,1725640306062,-500.0,0.00022465,2]
[337404074,1725640306072,-500.0,0.00022465,2]
[337404075,1725640306082,-744.4,0.00022465,2]
[337404076,1725640306093,-500.0,0.00022465,2]
[337404077,1725640306104,-1009.25,0.00022465,2]
[337404078,1725640306114,-500.0,0.00022465,2]
[337404079,1725640306124,-762.37,0.00022465,2]
[337404080,1725640306134,-560.08,0.00022465,2]
[337404081,1725640306143,-945.7,0.00022465,2]
[337404082,1725640306155,-500.0,0.00022465,2]
[337404083,1725640306164,-558.5,0.00022465,2]
[337404084,1725640306174,-151.0,0.00022465,7]
[337404085,1725640306185,-33723.53,0.00022465,2]
[337404086,1725640306196,-777.59,0.00022465,2]
[337404087,1725640306209,-500.0,0.00022465,2]
[337404088,1725640306219,-1397.71,0.00022465,2]
[337404089,1725640306229,-987.521377,0.00022465,7]
[337404090,1725640306238,-987.521377,0.00022465,7]
[337404091,1725640306247,-878.69,0.00022465,2]
[337404092,1725640306257,-1056.1,0.00022465,2]
[337404093,1725640306266,-1114.04,0.00022465,2]
[337404094,1725640306276,-500.0,0.00022465,2]
[337404095,1725640306287,-610.72,0.00022465,2]
[337404096,1725640306297,-922.608772,0.00022465,7]
[337404097,1725640306307,-500.0,0.00022465,2]
[337404098,1725640306317,-196.020002,0.00022465,7]
[337404099,1725640306326,-634.73128527,0.00022465,2]
[337404100,1725640306336,-922.608772,0.00022465,7]
[337404101,1725640306346,-548.85,0.00022465,2]
[337404102,1725640306356,-614.18,0.00022465,2]
[337404103,1725640306366,-1172.77,0.00022465,2]
[337404104,1725640306376,-500.0,0.00022465,2]
[337404105,1725640306386,-687.0,0.00022465,2]
[337404106,1725640306395,-500.0,0.00022465,2]
[337404107,1725640306406,-1755.48,0.00022465,2]
[337404108,1725640306415,-531.9,0.00022465,2]
[337404109,1725640306425,-500.0,0.00022465,2]
[337404110,1725640306433,-500.0,0.00022465,2]
[337404111,1725640306442,-2286.81,0.00022465,2]
[337404112,1725640306451,-522.05,0.00022465,2]
[337404113,1725640306462,-500.0,0.00022465,2]
[337404114,1725640306472,-500.0,0.00022465,2]
[337404115,1725640306482,-20240.57,0.00022465,2]
[337404116,1725640306491,-151.0,0.00022465,7]
[337404117,1725640306501,-151.0,0.00022465,7]
[337404118,1725640306510,-500.0,0.00022465,2]
[337404119,1725640306519,-500.0,0.00022465,2]
[337404120,1725640306528,-151.0,0.00022465,7]
[337404121,1725640306538,-1691.2,0.00022465,2]
[337404122,1725640306547,-500.0,0.00022465,2]
[337404123,1725640306557,-500.0,0.00022465,2]
[337404124,1725640306566,-48097.67,0.00022465,2]
[337404125,1725640306575,-158.278985,0.00022465,7]
[337404126,1725640306585,-1464.098608,0.00022465,7]
[337404127,1725640306594,-151.0,0.00022465,7]
[337404128,1725640306603,-1062.3,0.00022465,2]
[337404129,1725640306613,-509.35782861,0.00022465,2]
[337404130,1725640306622,-227.930053,0.00022465,7]
[337404131,1725640306632,-670.38,0.00022465,2]
[337404132,1725640306643,-1464.098608,0.00022465,7]
[337404133,1725640306657,-1757.36,0.00022465,2]
[337404134,1725640306666,-1817.39,0.00022465,2]
[337404135,1725640306675,-500.0,0.00022465,2]
[337404136,1725640306685,-1278.16,0.00022465,2]
[337404137,1725640306695,-1440.55,0.00022465,2]
[337404138,1725640306704,-500.0,0.00022465,2]
[337404139,1725640306713,-500.0,0.00022465,2]
[337404140,1725640306723,-1050.81,0.00022465,2]
[337404141,1725640306732,-1410.37,0.00022465,2]
[337404142,1725640306741,-766.12,0.00022465,2]
[337404143,1725640306751,-2052.27,0.00022465,2]
[337404144,1725640306761,-843.01,0.00022465,2]
[337404145,1725640306772,-4146.25,0.00022465,2]
[337404146,1725640306783,-151.0,0.00022465,7]
[337404147,1725640306792,-2102.07,0.00022465,2]
[337404148,1725640306801,-608.97,0.00022465,2]
[337404149,1725640306810,-500.0,0.00022465,2]
[337404150,1725640306819,-881.2,0.00022465,2]
[337404151,1725640306828,-1652.44,0.00022465,2]
[337404152,1725640306837,-500.0,0.00022465,2]
[337404153,1725640306846,-1872.26,0.00022465,2]
[337404154,1725640306856,-151.0,0.00022465,7]
[337404155,1725640306865,-816.45,0.00022465,2]
[337404156,1725640306874,-1401.93,0.00022465,2]
[337404157,1725640306883,-2544.68,0.00022465,2]
[337404158,1725640306892,-923.74,0.00022465,2]
[337404159,1725640306902,-185.732543,0.00022465,7]
[337404160,1725640306913,-185.732543,0.00022465,7]
[337404161,1725640306922,-500.0,0.00022465,2]
[337404162,1725640306932,-500.0,0.00022465,2]
[337404163,1725640306941,-500.0,0.00022465,2]
[337404164,1725640306950,-823.91,0.00022465,2]
[337404165,1725640306959,-500.0,0.00022465,2]
[337404166,1725640306968,-500.0,0.00022465,2]
[337404167,1725640306977,-588.31,0.00022465,2]
[337404168,1725640306987,-500.0,0.00022465,2]
[337404169,1725640306996,-151.0,0.00022465,7]
[337404170,1725640307006,-500.0,0.00022465,2]
[337404171,1725640307015,-744.07,0.00022465,2]
[337404172,1725640307024,-653.77,0.00022465,2]
[337404173,1725640307034,-6517.01,0.00022465,2]
[337404174,1725640307045,-749.51,0.00022465,2]
[337404175,1725640307055,-520.83,0.00022465,2]
[337404176,1725640307065,-620.83,0.00022465,2]
[337404177,1725640307075,-845.97,0.00022465,2]
[337404178,1725640307084,-1046.134196,0.00022465,7]
[337404179,1725640307098,-751.04,0.00022465,2]
[337404180,1725640307108,-500.0,0.00022465,2]
[337404181,1725640307117,-1046.134196,0.00022465,7]
[337404182,1725640307126,-913.96,0.00022465,2]
[337404183,1725640307137,-500.62228,0.00022465,7]
[337404184,1725640307146,-668.08,0.00022465,2]
[337404185,1725640307157,-500.0,0.00022465,2]
[337404186,1725640307167,-500.0,0.00022465,2]
[337404187,1725640307177,-569.4,0.00022465,2]
[337404188,1725640307186,-2285.62,0.00022465,2]
[337404189,1725640307196,-500.62228,0.00022465,7]
[337404190,1725640307206,-500.0,0.00022465,2]
[337404191,1725640307217,-1234.55,0.00022465,2]
[337404192,1725640307229,-681.99,0.00022465,2]
[337404193,1725640307240,-593.01750552,0.00022465,2]
[337404194,1725640307250,-767.97,0.00022465,2]
[337404195,1725640307260,-1265.16,0.00022465,2]
[337404196,1725640307269,-680.01,0.00022465,2]
[337404197,1725640307278,-1255.54,0.00022465,2]
[337404198,1725640307288,-500.0,0.00022465,2]
[337404199,1725640307297,-885.07,0.00022465,2]
[337404200,1725640307306,-500.0,0.00022465,2]
[337404201,1725640307315,-619.93,0.00022465,2]
[337404202,1725640307324,-1085.778674,0.00022465,7]
[337404203,1725640307334,-500.0,0.00022465,2]
[337404204,1725640307343,-1640.89,0.00022465,2]
[337404205,1725640307355,-1539.9,0.00022465,2]
[337404206,1725640307364,-1085.778674,0.00022465,7]
[337404207,1725640307373,-500.0,0.00022465,2]
[337404208,1725640307382,-500.0,0.00022465,2]
[337404209,1725640307391,-1397.23,0.00022465,2]
[337404210,1725640307399,-585.64,0.00022465,2]
[337404211,1725640307414,-48684.53,0.00022465,2]
[337404212,1725640307427,-790.55,0.00022465,2]
[337404213,1725640307437,-500.0,0.00022465,2]
[337404214,1725640307447,-500.0,0.00022465,2]
[337404215,1725640307458,-604.31032308,0.00022465,2]
[337404216,1725640307468,-866.79,0.00022465,2]
[337404217,1725640307477,-1476.42,0.00022465,2]
[337404218,1725640307487,-300.0,0.000226,10]
[337404219,1725640307497,-302.45563732,0.0002266,2]
[337404220,1725640307507,-302.42545213,0.0002266,2]
[337404221,1725640307516,-300.02,0.00022738,2]
[337404222,1725640307526,-3392.66874587,0.00022738,2]
[337404223,1725640307535,-171.077844,0.00022739,7]
[337404224,1725640307544,-500.0,0.00022739,2]
[337404225,1725640307554,-610.77,0.00022739,2]
[337404226,1725640307564,-500.0,0.00022739,2]
[337404227,1725640307574,-500.0,0.00022739,2]
[337404228,1725640307584,-813.65,0.00022739,2]
[337404229,1725640307594,-849.4,0.00022739,2]
[337404230,1725640307603,-500.0,0.00022739,2]
[337404231,1725640307613,-500.0,0.00022739,2]
[337404232,1725640307623,-500.0,0.00022739,2]
[337404233,1725640307633,-500.0,0.00022739,2]
[337404234,1725640307642,-571.33,0.00022739,2]
[337404235,1725640307652,-742.91,0.00022739,2]
[337404236,1725640307664,-500.0,0.00022739,2]
[337404237,1725640307674,-500.0,0.00022739,2]
[337404238,1725640307682,-809.25,0.00022739,2]
[337404239,1725640307692,-999.72,0.00022739,2]
[337404240,1725640307701,-500.0,0.00022739,2]
[337404241,1725640307710,-926.43,0.00022739,2]
[337404242,1725640307720,-746.96,0.00022739,2]
[337404243,1725640307729,-579.79,0.00022739,2]
[337404244,1725640307738,-500.0,0.00022739,2]
[337404245,1725640307748,-741.65,0.00022739,2]
[337404246,1725640307758,-554.41,0.00022739,2]
[337404247,1725640307768,-500.0,0.00022739,2]
[337404248,1725640307777,-589.04,0.00022739,2]
[337404249,1725640307787,-814.33,0.00022739,2]
[337404250,1725640307797,-500.0,0.00022739,2]
[337404251,1725640307806,-500.0,0.00022739,2]
[337404252,1725640307815,-589.16,0.00022739,2]
[337404253,1725640307825,-500.0,0.00022739,2]
[337404254,1725640307834,-500.0,0.00022739,2]
[337404255,1725640307843,-987.27,0.00022739,2]
[337404256,1725640307852,-500.0,0.00022739,2]
[337404257,1725640307862,-795.13,0.00022739,2]
[337404258,1725640307872,-618.42,0.00022739,2]
[337404259,1725640307881,-500.0,0.00022739,2]
[337404260,1725640307891,-651.04,0.00022739,2]
[337404261,1725640307900,-821.38,0.00022739,2]
[337404262,1725640307913,-592.44,0.00022739,2]
[337404263,1725640307925,-1272.15,0.00022739,2]
[337404264,1725640307934,-1117.88,0.00022739,2]
[337404265,1725640307943,-1080.6,0.00022739,2]
[337404266,1725640307951,-1014.72,0.00022739,2]
[337404267,1725640307961,-500.0,0.00022739,2]
[337404268,1725640307969,-176.34349399,0.00022739,2]
[337404269,1725640307979,-500.0,0.00022739,2]
[337404270,1725640307988,-500.0,0.00022739,2]
[337404271,1725640307997,-772.11,0.00022739,2]
[337404272,1725640308006,-814.17,0.00022739,2]
[337404273,1725640308016,-500.0,0.00022739,2]
[337404274,1725640308025,-500.0,0.00022739,2]
[337404275,1725640308035,-297.13919267,0.00022739,2]
[337404276,1725640308045,-500.0,0.00022739,2]
[337404277,1725640308055,-500.0,0.00022739,2]
[337404278,1725640308066,-500.0,0.00022739,2]
[337404279,1725640308076,-500.0,0.00022739,2]
[337404280,1725640308087,-500.59,0.00022739,2]
[337404281,1725640308097,-500.0,0.00022739,2]
[337404282,1725640308111,-500.0,0.00022739,2]
[337404283,1725640308122,-1567.65,0.00022739,2]
[337404284,1725640308134,-500.0,0.00022739,2]
[337404285,1725640308144,-939.4,0.00022739,2]
[337404286,1725640308157,-500.0,0.00022739,2]
[337404287,1725640308168,-567.34,0.00022739,2]
[337404288,1725640308180,-500.0,0.00022739,2]
[337404289,1725640308190,-639.12,0.00022739,2]
[337404290,1725640308201,-500.0,0.00022739,2]
[337404291,1725640308211,-1180.54,0.00022739,2]
[337404292,1725640308221,-726.62,0.00022739,2]
[337404293,1725640308231,-680.99,0.00022739,2]
[337404294,1725640308240,-968.59,0.00022739,2]
[337404295,1725640308250,-651.15,0.00022739,2]
[337404296,1725640308260,-521.44,0.00022739,2]
[337404297,1725640308269,-500.0,0.00022739,2]
[337404298,1725640308279,-599.48,0.00022739,2]
[337404299,1725640308288,-385.84783413,0.00022739,2]
[337404300,1725640308298,-500.0,0.00022739,2]
[337404301,1725640308309,-250.72200637,0.00022739,2]
[337404302,1725640308318,-1405.05,0.00022739,2]
[337404303,1725640308328,-500.0,0.00022739,2]
[337404304,1725640308337,-615.35,0.00022739,2]
[337404305,1725640308347,-500.0,0.00022739,2]
[337404306,1725640308356,-500.0,0.00022739,2]
[337404307,1725640308365,-500.0,0.00022739,2]
[337404308,1725640308375,-630.9120223,0.00022739,2]
[337404309,1725640308386,-606.55,0.00022739,2]
[337404310,1725640308396,-500.0,0.00022739,2]
[337404311,1725640308409,-698.82,0.00022739,2]
[337404312,1725640308419,-500.0,0.00022739,2]
[337404313,1725640308430,-952.82,0.00022739,2]
[337404314,1725640308439,-622.55,0.00022739,2]
[337404315,1725640308449,-577.97601771,0.00022739,2]
[337404316,1725640308460,-979.78,0.00022739,2]
[337404317,1725640308469,-500.0,0.00022739,2]
[337404318,1725640308480,-500.0,0.00022739,2]
[337404319,1725640308490,-500.0,0.00022739,2]
[337404320,1725640308500,-500.0,0.00022739,2]
[337404321,1725640308511,-819.45,0.00022739,2]
[337404322,1725640308521,-645.35,0.00022739,2]
[337404323,1725640308531,-500.0,0.00022739,2]
[337404324,1725640308540,-733.98,0.00022739,2]
[337404325,1725640308549,-151.0,0.00022739,7]
[337404326,1725640308559,-537.89,0.00022739,2]
[337404327,1725640308568,-500.0,0.00022739,2]
[337404328,1725640308578,-612.76,0.00022739,2]
[337404329,1725640308588,-851.49,0.00022739,2]
[337404330,1725640308598,-894.83,0.00022739,2]
[337404331,1725640308608,-583.43,0.00022739,2]
[337404332,1725640308618,-1053.94,0.00022739,2]
[337404333,1725640308628,-500.0,0.00022739,2]
[337404334,1725640308638,-1098.68,0.00022739,2]
[337404335,1725640308647,-500.0,0.00022739,2]
[337404336,1725640308661,-1626.43,0.00022739,2]
[337404337,1725640308671,-500.0,0.00022739,2]
[337404338,1725640308681,-1091.102804,0.00022739,7]
[337404339,1725640308692,-506.99197208,0.00022739,2]
[337404340,1725640308702,-1091.102804,0.00022739,7]
[337404341,1725640308712,-744.4,0.00022739,2]
[337404342,1725640308721,-245.11706236,0.00022739,2]
[337404343,1725640308731,-822.811423,0.00022739,7]
[337404344,1725640308741,-1009.25,0.00022739,2]
[337404345,1725640308751,-500.0,0.00022739,2]
[337404346,1725640308760,-822.811423,0.00022739,7]
[337404347,1725640308771,-762.37,0.00022739,2]
[337404348,1725640308780,-683.128628,0.00022739,7]
[337404349,1725640308790,-560.08,0.00022739,2]
[337404350,1725640308800,-945.7,0.00022739,2]
[337404351,1725640308809,-593.28750499,0.00022739,2]
[337404352,1725640308819,-683.128628,0.00022739,7]
[337404353,1725640308829,-558.5,0.00022739,2]
[337404354,1725640308839,-25658.27464903,0.00022739,2]
[337404355,1725640309318,-500.0,0.00021369,2]
[337404356,1725640309329,-8065.25535097,0.00022739,2]
[337404357,1725640309338,-777.59,0.00022739,2]
[337404358,1725640309348,-500.0,0.00022739,2]
[337404359,1725640309357,-1397.71,0.00022739,2]
[337404360,1725640309367,-878.69,0.00022739,2]
[337404361,1725640309376,-1056.1,0.00022739,2]
[337404362,1725640309386,-1114.04,0.00022739,2]
[337404363,1725640309395,-507.47526896,0.00022739,2]
[337404364,1725640309409,-610.72,0.00022739,2]
[337404365,1725640309419,-500.0,0.00022739,2]
[337404366,1725640309429,-548.85,0.00022739,2]
[337404367,1725640309438,-614.18,0.00022739,2]
[337404368,1725640309448,-1172.77,0.00022739,2]
[337404369,1725640309457,-500.0,0.00022739,2]
[337404370,1725640309467,-687.0,0.00022739,2]
[337404371,1725640309476,-1755.48,0.00022739,2]
[337404372,1725640309486,-531.9,0.00022739,2]
[337404373,1725640309495,-151.0,0.00022739,7]
[337404374,1725640309506,-500.0,0.00022739,2]
[337404375,1725640309516,-500.0,0.00022739,2]
[337404376,1725640309525,-2286.81,0.00022739,2]
[337404377,1725640309535,-522.05,0.00022739,2]
[337404378,1725640309544,-158.395947,0.00022739,7]
[337404379,1725640309554,-500.0,0.00022739,2]
[337404380,1725640309563,-13602.72343307,0.00022739,2]
[337404381,1725640309967,-500.0,0.00019178,2]
[337404382,1725640309977,-500.0,0.00019178,2]
[337404383,1725640309986,-500.0,0.00019178,2]
[337404384,1725640309995,-279.9,0.00019452,2]
[337404385,1725640310005,-322.8262,0.00020273,2]
[337404386,1725640310015,-322.8262,0.00020547,2]
[337404387,1725640310026,-500.0,0.00021643,2]
[337404388,1725640310037,-500.0,0.00021917,2]
[337404389,1725640310047,-500.0,0.00022191,2]
[337404390,1725640310058,-500.0,0.00022465,2]
[337404391,1725640310067,-2247.59330454,0.00022739,2]
[337404450,1725641432120,-309.5210958,0.0001782,2]
[337404452,1725641432131,-300.0,0.0001787,2]
[337404454,1725641432141,-300.0,0.0001787,2]
[337404457,1725641432151,-170.5789042,0.00017871,2]
[337404460,1725641432177,-538.01,0.00017871,2]
[337404463,1725641432189,-24191.4110958,0.00017871,2]
[337404465,1725641432199,-183.25250361,0.00018,2]
[337404467,1725641432210,-3870.0,0.00018,2]
[337404469,1725641432221,-570.42432769,0.00019,2]
[337404471,1725641432232,-473.21000056,0.00019058,2]
[337404474,1725641432243,-465.99060641,0.00019073,2]
[337404476,1725641432253,-192.28093976,0.00019073,2]
[337404478,1725641432264,-192.28093976,0.00019078,2]
[337404480,1725641432274,-150.112233,0.000191,2]
[337404482,1725641432283,-150.0,0.00019113,2]
[337404484,1725641432294,-626.57259482,0.00019167,2]
[337404487,1725641432310,-401.08528342,0.00019167,2]
[337404489,1725641432321,-500.0,0.00019167,2]
[337404491,1725641432332,-500.0,0.00019167,2]
[337404493,1725641432344,-500.0,0.00019167,2]
[337404496,1725641432356,-284.67093702,0.00019167,2]
[337404498,1725641432367,-500.0,0.00019167,2]
[337404500,1725641432376,-500.0,0.00019167,2]
[337404502,1725641432386,-500.0,0.00019167,2]
[337404504,1725641432396,-500.0,0.00019167,2]
[337404506,1725641432408,-500.0,0.00019167,2]
[337404509,1725641432421,-500.0,0.00019167,2]
[337404511,1725641432432,-500.0,0.00019167,2]
[337404513,1725641432443,-500.0,0.00019167,2]
[337404515,1725641432456,-500.0,0.00019167,2]
[337404517,1725641432466,-500.0,0.00019167,2]
[337404519,1725641432475,-500.0,0.00019167,2]
[337404521,1725641432486,-500.0,0.00019167,2]
[337404523,1725641432497,-500.0,0.00019167,2]
[337404525,1725641432506,-162.74718204,0.00019167,2]
[337404528,1725641432516,-500.0,0.00019167,2]
[337404530,1725641432525,-500.0,0.00019167,2]
[337404532,1725641432537,-500.0,0.00019167,2]
[337404534,1725641432547,-500.0,0.00019167,2]
[337404536,1725641432561,-500.0,0.00019167,2]
[337404538,1725641432572,-430.0,0.00019167,2]
[337404540,1725641432583,-78611.94125939,0.00019168,2]
[337404629,1725641438041,-136511.31994961,0.00019168,2]
[337404630,1725641438052,-726776.058369,0.00019168,2]
[337404631,1725641438063,-190.548928,0.00019173,2]
[337404632,1725641438074,-500.0,0.00019178,2]
[337404633,1725641438085,-500.0,0.00019178,2]
[337404634,1725641438096,-500.0,0.00019178,2]
[337404637,1725641438346,-500.0,0.00019178,2]
[337404638,1725641438358,-500.0,0.00019178,2]
[337404639,1725641438368,-500.0,0.00019178,2]
[337404640,1725641438377,-500.0,0.00019178,2]
[337404641,1725641438398,-500.0,0.00019178,2]
[337404642,1725641438409,-500.0,0.00019178,2]
[337404643,1725641438420,-453.07159456,0.00019178,2]
[337404644,1725641438430,-245.62389111,0.00019178,2]
[337404645,1725641438441,-500.0,0.00019178,2]
[337404646,1725641438453,-500.0,0.00019178,2]
[337404647,1725641438465,-500.0,0.00019178,2]
[337404648,1725641438476,-342.44012142,0.00019178,2]
[337404649,1725641438487,-500.0,0.00019178,2]
[337404650,1725641438499,-500.0,0.00019178,2]
[337404651,1725641438510,-500.0,0.00019178,2]
[337404652,1725641438522,-188.4916022,0.00019178,2]